bitfinex/quotes_ETHUSD_20250616
["timestamp","ask_amount","ask_price","bid_price","bid_amount"]
[1750038625444,0.196,2544.0,2543.6,0.55]
[1750038625841,0.196,2544.0,2543.5,0.196]
[1750038626147,27.252074,2544.3,2543.4,0.7939]
[1750038626340,0.196,2543.7,2543.4,0.7939]
[1750038627564,0.196,2543.7,2543.5,0.03931117]
[1750038627755,0.196,2543.7,2543.4,0.7939]
[1750038628422,10.0,2545.2,2543.6,8.20129083]
[1750038628557,0.196,2544.3,2544.2,0.8062]
[1750038628760,1.815,2545.1,2544.3,0.55]
[1750038628761,17.252074,2544.9,2544.3,0.55]
[1750038629068,0.146,2544.6,2544.3,0.55]
[1750038629892,17.252074,2545.4,2544.5,0.55]
[1750038630237,0.196,2544.9,2544.5,0.746]
[1750038630398,0.196,2544.9,2544.6,0.03929273]
[1750038630566,0.196,2544.9,2544.5,0.746]
[1750038630897,7.37119083,2545.3,2543.9,0.8049]
[1750038631098,0.196,2544.1,2543.9,0.8049]
[1750038631893,0.196,2544.1,2543.8,0.55]
[1750038636902,18.495,2544.9,2543.5,0.55]
[1750038636903,25.86619083,2544.9,2543.5,0.55]
[1750038637120,0.196,2543.9,2543.5,0.746]
[1750038637414,10.0,2544.8,2543.4,10.0]
[1750038637415,0.196,2543.8,2543.4,10.0]
[1750038639973,0.196,2543.8,2543.5,0.58931068]
[1750038640312,0.196,2544.0,2543.5,0.746]
[1750038640835,0.196,2544.0,2543.5,0.196]
[1750038640989,19.18519083,2544.6,2543.4,10.0]
[1750038640990,0.196,2543.8,2543.4,10.0]
[1750038641926,0.196,2543.8,2543.3,0.9634]
[1750038641927,0.196,2543.6,2543.3,0.55]
[1750038642913,0.196,2543.6,2543.2,1.814]
[1750038643113,0.196,2543.4,2543.2,1.814]
[1750038643315,0.196,2543.4,2543.0,0.8132]
[1750038644841,19.18519083,2544.0,2542.7,1.814]
[1750038645046,0.196,2543.2,2542.7,2.01]
[1750038645329,27.252074,2543.8,2542.7,1.814]
[1750038645633,0.196,2543.0,2542.8,0.03932265]
[1750038645834,0.196,2543.0,2542.7,1.814]
[1750038646136,17.252074,2543.5,2542.3,0.7867]
[1750038646294,7.37119083,2543.7,2542.2,1.814]
[1750038646295,1.1631737,2544.2,2542.9,7.37119083]
[1750038646499,0.196,2543.3,2542.9,7.37119083]
[1750038646739,0.196,2543.3,2542.9,0.55]
[1750038647346,17.252074,2543.9,2542.6,2.364]
[1750038647549,0.196,2543.1,2542.6,0.746]
[1750038648198,10.0,2543.7,2542.2,0.756]
[1750038648401,0.196,2542.7,2542.3,0.196]
[1750038648639,0.196,2542.7,2542.4,0.55]
[1750038649404,0.196,2542.7,2542.5,0.03932661]
[1750038650061,0.196,2542.7,2542.4,0.55]
[1750038650235,0.196,2542.7,2542.3,0.196]
[1750038650424,0.93334408,2543.7,2542.4,0.756]
[1750038650752,1.814,2544.3,2543.5,7.37119083]
[1750038650905,1.814,2544.3,2543.6,0.03931166]
[1750038651102,17.252074,2544.2,2543.6,0.03931166]
[1750038651348,27.252074,2544.0,2543.0,0.55]
[1750038651508,1.814,2544.1,2543.0,0.55]
[1750038651846,1.814,2544.1,2543.1,0.03931701]
[1750038652720,11.814,2544.3,2543.5,0.55]
[1750038652916,2.75015402,2544.3,2543.5,0.55]
[1750038653226,0.2750154,2544.2,2543.5,0.55]
[1750038655272,17.252074,2544.1,2543.2,0.55]
[1750038655446,17.252074,2544.1,2543.1,0.76]
[1750038655648,17.252074,2544.1,2542.9,0.7557]
[1750038655807,27.252074,2543.9,2543.0,0.55]
[1750038656014,8.492,2544.2,2543.4,0.55]
[1750038657325,2.09965785,2544.6,2543.3,0.7557]
[1750038657659,8.492,2544.2,2543.4,0.58931445]
[1750038658519,27.252074,2544.5,2543.4,0.58931445]
[1750038658722,1.814,2544.4,2543.5,1.13450144]
[1750038659150,8.492,2544.4,2543.5,1.13450144]
[1750038660065,8.492,2544.5,2543.6,11.3784]
[1750038660545,0.196,2544.0,2543.8,0.55]
[1750038660866,0.196,2544.0,2543.7,0.55]
[1750038661074,0.93728408,2544.9,2544.1,0.55]
[1750038661239,1.814,2545.1,2544.3,0.55]
[1750038661442,0.196,2544.6,2544.3,0.55]
[1750038662138,0.196,2544.6,2544.2,0.196]
[1750038662479,8.491,2545.1,2544.1,0.55]
[1750038662480,0.196,2544.4,2544.1,0.55]
[1750038662629,17.252074,2545.0,2544.1,0.55]
[1750038662975,0.196,2544.3,2544.1,0.55]
[1750038663141,0.196,2544.3,2543.8,3.16744]
[1750038663142,0.196,2544.3,2543.9,0.55]
[1750038663332,0.196,2544.1,2543.9,0.55]
[1750038664159,0.196,2544.1,2543.9,0.5893048]
[1750038664341,1.814,2544.9,2544.1,0.55]
[1750038664545,0.196,2544.4,2544.3,0.8275]
[1750038665859,0.196,2544.4,2544.3,1.3775]
[1750038666073,1.814,2544.9,2544.3,1.02418007]
[1750038666296,0.196,2544.5,2544.3,0.8275]
[1750038669200,13.152,2545.4,2544.4,0.58929871]
[1750038669342,13.152,2545.4,2544.4,10.58929116]
[1750038669343,19.828,2545.4,2544.4,10.58929116]
[1750038669544,19.828,2545.4,2544.4,10.55]
[1750038669777,19.828,2545.4,2544.4,2.42486908]
[1750038671186,13.152,2545.4,2544.4,2.42486908]
[1750038671384,6.675,2545.3,2544.4,0.55]
[1750038671686,6.675,2545.3,2544.7,0.8288]
[1750038671886,6.675,2545.3,2544.7,0.86809268]
[1750038672086,17.252074,2545.8,2544.8,0.55]
[1750038672389,6.675,2545.5,2544.8,0.55]
[1750038673393,6.675,2545.5,2544.9,0.0392899]
[1750038673551,8.488,2545.6,2545.0,0.55]
[1750038673951,6.675,2545.5,2545.0,0.55]
[1750038674561,6.675,2545.5,2544.7,0.8288]
[1750038674764,6.675,2545.5,2544.8,0.55]
[1750038674765,0.8488,2545.4,2544.8,0.55]
[1750038675047,24.62326483,2545.3,2544.4,0.7742]
[1750038675304,17.252074,2545.2,2544.4,0.7742]
[1750038675649,27.252074,2545.3,2544.4,10.81349781]
[1750038675863,17.252074,2545.3,2544.4,10.7742]
[1750038676083,0.81926845,2545.2,2544.4,10.7742]
[1750038676285,10.0,2545.3,2544.4,10.7742]
[1750038676492,10.0,2545.7,2544.6,0.55]
[1750038676649,6.674,2545.4,2544.9,0.7559]
[1750038676994,6.674,2545.5,2544.9,0.7559]
[1750038679191,0.196,2545.1,2544.9,0.7559]
[1750038682410,1.813,2545.7,2545.0,0.58928882]
[1750038682697,0.196,2545.2,2545.1,1.13451888]
[1750038683389,0.196,2545.2,2545.0,0.55]
[1750038683754,6.673,2545.6,2544.9,0.7559]
[1750038683954,0.196,2545.1,2544.6,1.5356]
[1750038684395,10.0,2545.4,2544.6,1.3396]
[1750038684613,0.196,2544.9,2544.6,0.7896]
[1750038684756,0.196,2544.7,2544.6,0.7896]
[1750038686878,0.196,2544.7,2544.6,1.3396]
[1750038687078,10.0,2545.4,2544.7,0.55]
[1750038687079,0.196,2544.9,2544.7,0.55]
[1750038687682,0.196,2544.9,2544.6,0.7896]
[1750038687882,0.196,2544.7,2544.6,0.7896]
[1750038689084,0.196,2544.7,2544.3,1.4998]
[1750038689594,1.812,2545.4,2544.7,0.55]
[1750038689796,0.196,2545.1,2544.7,0.55]
[1750038690006,0.196,2545.1,2544.9,0.55]
[1750038692288,0.196,2545.1,2544.7,0.55]
[1750038692489,17.252074,2545.0,2544.0,0.7537]
[1750038692697,0.196,2545.1,2544.1,0.03930344]
[1750038692901,0.196,2545.1,2544.3,0.55]
[1750038693109,0.196,2545.1,2544.2,0.7537]
[1750038693313,0.196,2545.1,2544.3,1.07537]
[1750038693513,6.672,2545.2,2544.4,0.55]
[1750038694030,6.671,2545.2,2544.3,0.55]
[1750038694236,27.252074,2545.1,2544.3,0.55]
[1750038694435,17.252074,2545.1,2544.3,0.55]
[1750038694602,6.671,2545.2,2544.3,0.55]
[1750038695233,17.252074,2545.1,2544.3,0.55]
[1750038695641,6.671,2545.2,2544.3,0.55]
[1750038696528,6.671,2545.2,2544.4,0.03929791]
[1750038696929,6.671,2545.2,2544.3,0.55]
[1750038697236,0.8483,2545.1,2544.3,0.55]
[1750038697812,0.8483,2545.1,2544.2,0.7537]
[1750038698017,10.8483,2545.1,2544.3,0.58930146]
[1750038698223,1.811,2545.2,2544.5,0.55]
[1750038698416,6.672,2545.3,2544.5,0.55]
[1750038699343,1.811,2545.4,2544.5,0.55]
[1750038699549,0.93971219,2545.7,2544.7,0.55]
[1750038699751,2.75071219,2546.0,2544.9,10.55]
[1750038699946,6.671,2545.9,2545.1,0.55]
[1750038700271,10.60289798,2546.0,2545.1,10.58928663]
[1750038700425,10.60289798,2546.0,2545.1,10.55]
[1750038700611,3.93189798,2546.0,2545.2,0.03928498]
[1750038700808,6.671,2545.9,2545.1,10.55]
[1750038701008,2.99218579,2546.0,2545.2,0.03928584]
[1750038701208,1.18118579,2546.0,2545.4,0.55]
[1750038701432,6.671,2546.1,2545.4,0.58928187]
[1750038701762,6.671,2546.1,2545.4,0.55]
[1750038702633,0.196,2545.8,2545.4,0.55]
[1750038703224,0.196,2545.8,2545.5,0.03927941]
[1750038705113,0.196,2545.8,2545.6,0.828]
[1750038707273,0.196,2545.8,2545.7,0.55]
[1750038707449,1.811,2546.2,2545.7,0.58927946]
[1750038707649,0.196,2545.9,2545.7,0.58927946]
[1750038707969,0.196,2545.9,2545.7,11.75060741]
[1750038708134,0.196,2545.9,2545.7,11.71132795]
[1750038709313,1.811,2546.2,2545.6,0.828]
[1750038709556,0.196,2545.7,2545.6,0.828]
[1750038717974,13.146,2546.4,2545.6,0.828]
[1750038718275,0.196,2546.2,2546.1,0.55]
[1750038718572,1.34527644,2547.0,2546.5,0.8316]
[1750038718775,0.196,2546.9,2546.6,0.03926269]
[1750038719070,0.1747197,2547.2,2546.9,0.8316]
[1750038719271,0.1747197,2547.2,2547.0,0.03925564]
[1750038719477,0.1747197,2547.2,2546.9,0.8316]
[1750038719645,0.3707197,2547.2,2546.4,11.81]
[1750038719991,0.196,2547.0,2546.7,0.55]
[1750038720197,0.1747197,2547.2,2546.8,0.03925949]
[1750038720337,0.196,2547.1,2546.8,0.03925879]
[1750038721379,0.196,2547.1,2546.2,1.3765]
[1750038721533,0.196,2547.1,2546.3,0.55]
[1750038721751,0.196,2547.1,2546.2,0.8265]
[1750038721935,0.196,2547.1,2546.3,0.0392682]
[1750038722245,6.8397197,2547.2,2545.9,1.81]
[1750038722429,0.1747197,2547.2,2546.1,7.37119083]
[1750038722634,0.1747197,2547.2,2546.3,0.55]
[1750038722888,0.1747197,2547.2,2546.2,0.8046]
[1750038723075,6.8397197,2547.2,2546.3,0.5892682]
[1750038723371,0.1747197,2547.2,2546.5,0.55]
[1750038723676,0.1747197,2547.2,2546.6,0.03926181]
[1750038723866,0.1747197,2547.2,2546.8,0.8046]
[1750038724366,0.1747197,2547.2,2546.9,0.03926108]
[1750038724678,0.1747197,2547.2,2546.9,0.55]
[1750038724999,0.1747197,2547.2,2547.0,1.13546]
[1750038725299,0.1747197,2547.2,2547.0,1.17471686]
[1750038725693,0.1747197,2547.2,2547.1,0.55]
[1750038726502,0.1747197,2547.2,2547.1,5.24763352]
[1750038726806,0.1747197,2547.2,2547.1,1.3216]
[1750038727002,0.1747197,2547.2,2547.1,8.01569897]
[1750038727416,0.1747197,2547.2,2547.1,4.08966545]
[1750038728281,0.1747197,2547.2,2547.1,1.3216]
[1750038729623,1.809,2548.3,2547.1,1.3216]
[1750038729624,1.809,2548.3,2547.1,0.55]
[1750038729821,2.31170373,2549.3,2547.1,0.55]
[1750038729822,1.82141898,2549.0,2548.1,10.7716]
[1750038729970,0.2197197,2549.7,2548.2,1.807]
[1750038730310,0.2197197,2549.7,2548.2,1.84624045]
[1750038730311,10.2197197,2549.7,2548.2,1.84624045]
[1750038730493,10.2197197,2549.7,2548.3,12.47808404]
[1750038730690,10.2197197,2549.7,2548.3,2.47808404]
[1750038730893,0.2197197,2549.7,2548.5,0.55]
[1750038731092,0.2197197,2549.7,2548.6,0.85002945]
[1750038731292,0.196,2549.2,2548.7,0.746]
[1750038732411,0.196,2549.2,2548.7,2.2979823]
[1750038732809,0.2197197,2549.7,2548.9,0.55]
[1750038733129,0.2197197,2549.7,2549.2,0.55]
[1750038733739,0.2197197,2549.7,2549.2,10.55]
[1750038734020,0.2197197,2549.7,2549.2,0.55]
[1750038734308,0.2197197,2549.7,2549.3,0.03922091]
[1750038734509,0.2197197,2549.7,2549.1,10.55]
[1750038734710,0.2197197,2549.7,2549.3,0.55]
[1750038735083,0.2197197,2549.7,2548.9,0.55]
[1750038735427,0.2197197,2549.7,2549.4,0.55]
[1750038737609,0.2197197,2549.7,2549.3,0.8045]
[1750038738698,0.2197197,2549.7,2549.4,0.58922091]
[1750038738898,0.2197197,2549.7,2549.4,2.1208622]
[1750038739210,0.2197197,2549.7,2549.4,0.58922091]
[1750038740617,0.2197197,2549.7,2549.4,0.55]
[1750038740974,0.2197197,2549.7,2549.0,0.8252]
[1750038741174,0.2197197,2549.7,2548.8,0.03921639]
[1750038741575,0.2197197,2549.7,2549.1,3.9229528]
[1750038741880,0.2197197,2549.7,2549.3,11.3174]
[1750038742110,0.2197197,2549.7,2549.6,11.3174]
[1750038742418,0.20514653,2551.1,2550.3,0.55]
[1750038742620,0.2197,2551.9,2550.9,0.7986]
[1750038742778,0.1952,2551.7,2551.0,12.356]
[1750038742983,17.252074,2552.2,2551.2,0.55]
[1750038743219,0.1952,2551.8,2551.4,0.1952]
[1750038743378,0.4394197,2552.3,2551.5,1.84518662]
[1750038743580,0.4394197,2552.3,2551.6,0.55]
[1750038743825,0.4394197,2552.3,2551.4,0.1952]
[1750038744212,0.78106105,2552.2,2551.4,0.1952]
[1750038744385,10.78106105,2552.2,2551.3,0.55]
[1750038744583,10.78106105,2552.2,2551.4,0.03918815]
[1750038744814,0.78106105,2552.2,2551.4,0.03918815]
[1750038745019,0.4394197,2552.3,2551.3,0.55]
[1750038745242,5.48111278,2551.9,2550.8,0.751]
[1750038745450,5.48111278,2551.5,2550.4,2.5724]
[1750038745662,2.0247,2551.8,2550.5,10.0]
[1750038745963,0.2197,2551.8,2550.7,0.7674]
[1750038746123,0.2197,2551.8,2550.8,0.58919198]
[1750038746509,0.2197,2551.8,2550.8,0.55]
[1750038746701,17.252074,2551.7,2550.7,0.7674]
[1750038747747,0.2197,2551.8,2550.4,0.8296]
[1750038747748,27.252074,2551.5,2550.4,0.8296]
[1750038747906,17.252074,2551.5,2550.4,0.8296]
[1750038748543,27.252074,2551.3,2550.4,0.8296]
[1750038748743,17.252074,2551.3,2550.4,0.8296]
[1750038749107,17.252074,2551.3,2550.0,0.7808]
[1750038749449,0.2197,2551.2,2550.0,0.7808]
[1750038749656,27.252074,2551.1,2550.0,0.7808]
[1750038749807,1.805,2551.6,2550.2,0.8174]
[1750038749808,0.2197,2551.6,2550.2,0.8174]
[1750038750006,0.2197,2551.6,2550.6,0.55]
[1750038750210,17.252074,2551.5,2550.5,1.805]
[1750038750434,0.2197,2551.6,2550.6,0.55]
[1750038750652,0.2197,2551.6,2550.8,1.3674]
[1750038750825,0.2197,2551.6,2550.9,0.03919343]
[1750038751562,0.2197,2551.6,2550.8,1.3674]
[1750038751947,0.2197,2551.6,2550.9,0.03919344]
[1750038753240,0.2197,2552.0,2550.9,0.03919344]
[1750038753441,0.1952,2551.7,2551.2,0.1952]
[1750038753643,0.1952,2551.7,2551.3,0.86458866]
[1750038753849,0.1952,2551.7,2551.3,0.03918866]
[1750038754628,0.1952,2551.7,2551.2,0.1952]
[1750038754629,0.42217,2552.0,2551.0,0.761]
[1750038754833,0.1952,2551.4,2551.1,10.0391919]
[1750038755042,0.1952,2551.4,2551.1,10.0]
[1750038755242,0.1952,2551.4,2551.2,0.03919255]
[1750038755670,0.2197,2552.0,2551.1,10.0]
[1750038755832,0.1952,2551.6,2551.1,10.1952]
[1750038756173,0.1952,2551.6,2551.2,0.03919028]
[1750038756533,0.1952,2551.6,2551.1,11.47132]
[1750038757833,0.1952,2551.6,2551.1,0.1952]
[1750038758070,0.1952,2551.4,2551.1,0.03919344]
[1750038760072,0.1952,2551.1,2550.7,1.829]
[1750038760284,0.1952,2551.1,2550.6,1.0056]
[1750038760591,0.2197,2551.4,2550.6,1.0056]
[1750038760592,0.2197,2551.4,2550.7,0.03919797]
[1750038760770,0.196,2550.9,2550.7,0.03919797]
[1750038761273,0.2197,2551.7,2550.7,0.03919797]
[1750038761493,0.2197,2551.7,2550.6,0.8096]
[1750038761924,0.2197,2551.6,2550.6,0.8096]
[1750038762213,0.2197,2551.4,2550.3,0.7939]
[1750038762370,17.252074,2551.3,2550.3,0.7939]
[1750038762573,0.2197,2551.1,2550.3,0.7939]
[1750038762979,0.2197,2551.1,2550.1,10.0]
[1750038763410,0.2197,2551.1,2550.0,1.2939]
[1750038763572,17.252074,2551.0,2550.1,0.0392096]
[1750038763777,0.2197,2551.1,2550.1,0.0392096]
[1750038763977,0.91107,2551.1,2550.1,0.0392096]
[1750038764473,0.91107,2551.1,2550.0,1.2939]
[1750038764675,0.91107,2551.1,2550.1,0.03920607]
[1750038764886,0.91107,2551.1,2550.1,0.03920606]
[1750038765475,17.252074,2551.0,2550.0,1.2939]
[1750038765703,0.97669845,2550.9,2550.0,0.7939]
[1750038766036,0.2197,2551.1,2550.0,0.7939]
[1750038766037,0.2197,2551.1,2550.1,0.03920898]
[1750038766174,0.2197,2551.1,2550.3,10.8166]
[1750038766375,0.2197,2551.1,2550.4,0.03920128]
[1750038766685,0.2197,2551.1,2550.3,0.8166]
[1750038767013,0.2197,2551.1,2550.4,0.0392013]
[1750038767923,0.2197,2551.1,2550.3,0.8166]
[1750038768167,0.2197,2551.4,2550.5,0.7703]
[1750038768275,0.2197,2551.4,2550.6,0.03919875]
[1750038768475,17.471774,2551.8,2550.7,1.3203]
[1750038768680,17.471774,2551.8,2550.8,0.03919252]
[1750038768681,0.2197,2551.8,2550.8,0.03919252]
[1750038768880,0.2197,2551.8,2550.8,11.75019684]
[1750038769111,0.2197,2551.8,2550.8,11.71100432]
[1750038769313,0.2197,2551.8,2550.8,15.63131858]
[1750038769478,0.2197,2551.8,2550.8,11.71100432]
[1750038769925,0.2197,2551.8,2551.0,0.7938]
[1750038770084,0.2197,2551.8,2551.1,0.03919052]
[1750038770283,0.2197,2551.8,2551.0,1.49130637]
[1750038770473,0.93538674,2552.2,2551.1,0.8181]
[1750038770679,0.93538674,2552.2,2551.2,0.03919022]
[1750038770890,0.93538674,2552.2,2551.1,10.8181]
[1750038771115,0.93538674,2552.2,2551.2,1.83]
[1750038771315,0.4394197,2552.3,2551.1,0.8181]
[1750038771316,0.2197,2551.8,2551.1,0.8181]
[1750038771515,0.1952,2551.3,2551.1,0.8181]
[1750038771734,0.1952,2551.3,2551.1,0.85729515]
[1750038772594,0.1952,2551.3,2551.1,0.8181]
[1750038773579,0.2197,2551.8,2551.2,0.03919445]
[1750038773784,0.1952,2551.5,2551.2,0.03919445]
[1750038775818,0.93822811,2552.1,2551.2,0.55]
[1750038776023,0.1952,2551.8,2551.4,0.1952]
[1750038776226,0.1952,2551.8,2551.5,0.83658659]
[1750038776586,0.1952,2551.8,2551.6,1.10317866]
[1750038776821,0.1952,2551.8,2551.7,0.03918497]
[1750038777924,0.1952,2551.8,2551.6,0.03918494]
[1750038779345,0.2197197,2552.3,2551.6,10.03918494]
[1750038779502,0.1952,2552.2,2551.7,0.1952]
[1750038779687,0.1952,2552.2,2551.8,0.03918046]
[1750038780587,0.1952,2552.2,2551.7,0.1952]
[1750038780790,0.1952,2552.2,2551.8,0.03918049]
[1750038781521,0.2197197,2552.3,2551.9,0.8103]
[1750038781726,0.2197197,2552.3,2552.0,0.1952]
[1750038782915,0.1952,2552.0,2551.6,0.8311]
[1750038783526,0.4394197,2552.3,2551.3,0.8311]
[1750038783730,0.1952,2551.5,2551.3,0.8311]
[1750038783928,0.1952,2551.5,2551.1,0.7978]
[1750038784113,0.1952,2551.5,2551.1,2.08]
[1750038785533,0.1952,2551.5,2551.2,0.03919154]
[1750038785741,0.1952,2551.5,2551.1,2.08]
[1750038786956,0.1952,2551.5,2551.1,0.7978]
[1750038787162,0.2197,2551.6,2551.1,0.7978]
[1750038787307,0.1952,2551.3,2551.1,0.7978]
[1750038787946,0.2197,2551.9,2551.1,0.83699406]
[1750038788110,0.2197,2552.1,2551.2,4.46959494]
[1750038788322,0.1952,2551.9,2551.4,0.1952]
[1750038788529,0.1952,2551.9,2551.5,0.03918535]
[1750038789312,0.1952,2551.9,2551.5,0.81548535]
[1750038789551,0.2197197,2552.3,2551.5,4.73470586]
[1750038789785,0.1952,2552.1,2551.6,0.1952]
[1750038789921,0.1952,2552.1,2551.7,0.03918287]
[1750038791847,0.2197197,2552.3,2551.7,0.03918287]
[1750038792048,0.2197197,2552.3,2551.9,0.7856]
[1750038792246,0.2197197,2552.3,2552.0,0.23437693]
[1750038792621,0.2197197,2552.3,2551.9,0.7856]
[1750038792829,0.4149197,2552.3,2552.0,0.03917965]
[1750038793177,0.4149197,2552.3,2551.9,1.04616]
[1750038793668,0.4149197,2552.3,2552.0,0.03917972]
[1750038793877,0.4149197,2552.3,2551.9,1.04616]
[1750038794017,0.4149197,2552.3,2551.8,0.1952]
[1750038794216,0.2197197,2552.3,2551.8,0.03917974]
[1750038794476,0.2197197,2552.3,2551.9,0.1952]
[1750038794623,0.2197197,2552.3,2552.0,0.7657]
[1750038795122,0.2197197,2552.3,2552.1,0.23437809]
[1750038795432,0.2197197,2552.3,2552.1,1.72624793]
[1750038795832,0.2197197,2552.3,2552.1,0.23437809]
[1750038796568,0.2197197,2552.3,2552.2,10.55]
[1750038796881,0.2197197,2552.3,2552.2,15.80980884]
[1750038797019,0.2197197,2552.3,2552.2,11.89162062]
[1750038798336,0.2197197,2552.3,2552.2,11.34162062]
[1750038798561,0.2197197,2552.3,2552.2,12.47578268]
[1750038799162,0.2197197,2552.3,2552.2,13.02578268]
[1750038799609,0.2197197,2552.3,2552.2,16.9439709]
[1750038799774,0.2197197,2552.3,2552.2,13.02578268]
[1750038800719,0.2197197,2552.3,2552.2,12.47578268]
[1750038800989,0.2197197,2552.3,2551.9,0.9688]
[1750038801190,0.2197197,2552.3,2552.0,0.03917892]
[1750038801754,0.2197197,2552.3,2552.1,11.22101642]
[1750038802056,0.2197197,2552.3,2552.2,15.48126005]
[1750038802252,0.2197197,2552.3,2552.2,18.56949346]
[1750038802889,0.2197197,2552.3,2552.2,18.95692184]
[1750038805899,0.2197197,2552.3,2552.2,27.39092184]
[1750038808598,0.15765627,2552.8,2552.7,14.46742077]
[1750038808757,0.15765627,2552.8,2552.7,18.1903]
[1750038808956,0.15765627,2552.8,2552.7,19.85408014]
[1750038809463,0.15765627,2552.8,2552.7,19.85508014]
[1750038809994,0.2197,2554.2,2552.9,0.55]
[1750038810299,0.2197,2553.9,2553.1,10.0]
[1750038810674,0.2197,2553.6,2552.8,0.8258]
[1750038810995,1.82,2553.8,2552.8,1.32317801]
[1750038810996,7.30279237,2553.5,2552.8,1.32317801]
[1750038811159,7.30279237,2553.5,2552.6,6.664]
[1750038811160,0.2197,2553.4,2552.2,1.15482838]
[1750038811361,7.30279237,2553.3,2552.2,1.15482838]
[1750038811557,7.52249237,2553.0,2552.0,0.7674]
[1750038811753,0.93528738,2553.8,2551.7,1.19942532]
[1750038811754,7.30279237,2552.7,2551.7,1.19942532]
[1750038811998,3.91592569,2553.7,2551.3,0.39973796]
[1750038811999,7.30279237,2552.1,2551.3,0.39973796]
[1750038812196,0.2197,2552.0,2550.9,0.8122]
[1750038812398,2.0397,2552.0,2551.0,0.3809933]
[1750038813198,0.2197,2552.0,2551.0,10.3809933]
[1750038813398,1.82,2551.9,2551.0,0.3809933]
[1750038813697,1.82,2551.9,2550.9,0.8122]
[1750038814003,1.82,2551.9,2550.9,1.5302842]
[1750038814563,0.2197,2551.8,2550.9,1.5302842]
[1750038814896,0.2197,2551.8,2551.0,0.03919234]
[1750038815359,0.2197,2551.8,2550.9,1.13945022]
[1750038815562,0.2197,2551.8,2551.0,11.78054502]
[1750038815804,1.82,2551.9,2550.5,5.74073546]
[1750038815805,5.48320418,2551.7,2550.5,2.6246]
[1750038815993,0.2197,2551.6,2550.5,2.6246]
[1750038816504,0.2197,2551.6,2550.5,1.82]
[1750038817090,0.2197,2551.6,2550.2,0.7556]
[1750038817288,0.2197,2551.5,2550.2,0.7556]
[1750038817508,0.2197,2551.5,2550.0,13.117]
[1750038817509,0.2197,2551.3,2550.0,13.8934]
[1750038817703,0.2197,2551.3,2550.1,0.03920448]
[1750038817902,0.2197,2551.1,2550.1,10.03920448]
[1750038818201,0.2197,2551.1,2550.1,10.0]
[1750038818405,0.2197,2551.1,2550.2,0.03920448]
[1750038818610,0.42367,2551.1,2550.2,2.40129749]
[1750038819709,0.20397,2551.1,2550.2,2.36209301]
[1750038819889,0.2197,2551.6,2550.3,0.03920509]
[1750038820080,0.2197,2551.5,2550.3,0.03920509]
[1750038820701,0.2197,2551.5,2550.3,3.96029199]
[1750038821208,0.2197,2551.5,2550.3,10.03920509]
[1750038821407,0.2197,2551.5,2550.3,13.92107676]
[1750038821908,0.42257,2551.5,2550.4,1.39210768]
[1750038822111,2.0287,2551.5,2550.5,10.03919632]
[1750038822412,2.0287,2551.5,2550.4,0.55]
[1750038823125,2.0287,2551.5,2550.0,2.9982197]
[1750038823126,0.2197,2551.4,2550.1,7.204]
[1750038823277,0.2197,2551.3,2550.2,1.01912197]
[1750038823476,0.2197,2551.3,2550.3,0.03920111]
[1750038824515,0.2197,2550.8,2549.3,6.48407754]
[1750038824682,0.2197,2550.7,2549.4,13.96165754]
[1750038825013,0.2197,2550.7,2549.4,3.92244702]
[1750038825211,0.42257,2550.7,2549.5,1.70645757]
[1750038825508,0.2197,2550.6,2549.6,0.03921052]
[1750038826211,0.2197,2550.6,2549.6,0.43810983]
[1750038826717,0.2197,2550.6,2549.6,0.03921084]
[1750038829781,0.196,2550.2,2549.8,0.196]
[1750038829975,0.196,2550.2,2549.9,0.03921122]
[1750038830313,0.2197,2550.6,2550.0,0.55]
[1750038830484,0.2197,2550.6,2550.1,0.03920367]
[1750038830684,0.2197,2550.6,2550.1,2.12044074]
[1750038831217,0.2197,2550.6,2550.1,2.08123707]
[1750038832415,0.2197,2550.6,2550.2,0.03920654]
[1750038832717,0.2197,2550.6,2549.8,0.03920796]
[1750038835402,0.2197,2550.6,2549.7,10.0]
[1750038836276,0.2197,2550.6,2549.6,4.72]
[1750038837521,0.2197,2550.6,2549.6,4.75921765]
[1750038837927,1.81,2550.5,2549.6,5.23513942]
[1750038838223,0.2197,2550.6,2549.7,10.0]
[1750038838390,0.2197,2550.6,2549.8,0.03920855]
[1750038838724,0.2197,2550.6,2549.6,10.47592177]
[1750038838927,0.2197,2550.6,2549.6,4.39809645]
[1750038839088,0.2197,2550.6,2549.7,0.52269965]
[1750038839428,0.2197,2550.6,2549.8,0.03920962]
[1750038840323,0.196,2550.3,2549.9,0.196]
[1750038840529,0.196,2550.3,2550.0,0.03920965]
[1750038841292,0.2197,2550.6,2550.0,0.03920965]
[1750038841502,0.4157,2550.6,2550.1,0.196]
[1750038841706,0.4157,2550.6,2550.2,0.03920579]
[1750038842218,0.4157,2550.6,2550.1,0.196]
[1750038842529,0.196,2550.3,2549.8,0.196]
[1750038842735,0.196,2550.3,2549.9,0.03921026]
[1750038842933,0.2197,2550.6,2549.9,0.03921026]
[1750038843231,0.2197,2550.6,2550.0,3.9214965]
[1750038843415,0.4157,2550.6,2550.1,11.63127646]
[1750038843617,0.4157,2550.6,2550.1,1.59207068]
[1750038843798,0.2197,2550.6,2550.4,0.196]
[1750038845025,0.196,2550.8,2550.5,0.8115]
[1750038845240,1.55202488,2552.2,2551.7,0.8115]